bitfinex/quotes_BTCUSD_20210402
["timestamp","ask_amount","ask_price","bid_price","bid_amount"]
[1617388320083,2.0919098,59175.0,59174.0,7.30994374]
[1617388320285,2.0919098,59175.0,59174.0,7.57994374]
[1617388321285,2.0919098,59175.0,59174.0,7.70194374]
[1617388326701,2.0919098,59175.0,59174.0,7.46994374]
[1617388328102,2.10407743,59175.0,59174.0,7.46994374]
[1617388331757,2.10407743,59175.0,59174.0,6.96994374]
[1617388332161,2.10407743,59175.0,59174.0,6.66994374]
[1617388332356,2.10407743,59175.0,59174.0,1.50994374]
[1617388332561,2.10407743,59175.0,59174.0,0.96]
[1617388332824,2.30407743,59175.0,59173.0,0.261006]
[1617388333427,2.10506359,59175.0,59173.0,0.261006]
[1617388333624,0.315,59174.0,59173.0,0.261006]
[1617388333822,0.99096,59174.0,59173.0,0.261006]
[1617388334422,0.99096,59174.0,59173.0,0.361006]
[1617388336228,0.99096,59174.0,59173.0,0.261006]
[1617388337431,1.04096,59174.0,59173.0,0.261006]
[1617388338230,1.24096,59174.0,59173.0,0.261006]
[1617388339029,1.19096,59174.0,59173.0,0.261006]
[1617388339428,0.99096,59174.0,59173.0,0.261006]
[1617388340431,1.06402686,59174.0,59173.0,0.261006]
[1617388341837,1.01402686,59174.0,59173.0,0.261006]
[1617388343255,1.01402686,59174.0,59173.0,1.261006]
[1617388343456,1.01402686,59174.0,59173.0,1.411006]
[1617388344694,1.01402686,59174.0,59173.0,1.261006]
[1617388353279,1.01402686,59174.0,59173.0,1.260551]
[1617388353680,0.69902686,59174.0,59173.0,1.260551]
[1617388357687,0.7000113,59174.0,59173.0,1.260551]
[1617388357901,0.7000113,59174.0,59173.0,1.530551]
[1617388358306,0.69902686,59174.0,59173.0,1.530551]
[1617388360107,1.69902686,59174.0,59173.0,1.260551]
[1617388360309,1.86082686,59174.0,59173.0,1.007077]
[1617388360536,3.2218109,59174.0,59173.0,1.007077]
[1617388360734,3.4218109,59174.0,59173.0,1.007077]
[1617388360936,3.42082686,59174.0,59173.0,1.007077]
[1617388361334,3.51582686,59174.0,59173.0,1.007077]
[1617388361533,4.46582686,59174.0,59173.0,1.007077]
[1617388361731,3.51582686,59174.0,59173.0,1.007077]
[1617388361931,2.51582686,59174.0,59173.0,1.007077]
[1617388362332,2.84082686,59174.0,59173.0,1.007077]
[1617388362969,2.62382686,59174.0,59173.0,1.007077]
[1617388363167,2.67382686,59174.0,59173.0,1.007077]
[1617388363366,2.58382686,59174.0,59173.0,1.007077]
[1617388364567,2.58382686,59174.0,59173.0,0.007077]
[1617388365366,3.67382686,59174.0,59173.0,0.007077]
[1617388365979,3.87382686,59174.0,59173.0,0.007077]
[1617388366179,3.83302686,59174.0,59173.0,0.007077]
[1617388366376,4.48302686,59174.0,59173.0,0.007077]
[1617388366576,4.68302686,59174.0,59173.0,0.007077]
[1617388366777,5.68302686,59174.0,59173.0,0.007077]
[1617388366978,5.48302686,59174.0,59173.0,0.007077]
[1617388367579,4.57302686,59174.0,59173.0,0.007077]
[1617388368412,5.05302686,59174.0,59173.0,0.007077]
[1617388368612,4.48302686,59174.0,59173.0,0.007077]
[1617388369009,3.82882686,59174.0,59173.0,0.007077]
[1617388369211,3.67382686,59174.0,59173.0,0.007077]
[1617388370412,4.28382686,59174.0,59173.0,0.007077]
[1617388370812,4.48382686,59174.0,59173.0,0.007077]
[1617388371034,4.44442686,59174.0,59173.0,0.007077]
[1617388371233,5.22842686,59174.0,59173.0,0.007077]
[1617388371831,5.17842686,59174.0,59173.0,0.007077]
[1617388372633,5.21842686,59174.0,59173.0,0.007077]
[1617388373031,5.41842686,59174.0,59173.0,0.007077]
[1617388373234,6.62942686,59174.0,59173.0,0.007077]
[1617388373435,5.64909561,59174.0,59173.0,0.007077]
[1617388373663,7.01706586,59174.0,59173.0,0.007077]
[1617388373857,6.64909418,59174.0,59173.0,0.007077]
[1617388374658,7.03673318,59174.0,59173.0,0.007077]
[1617388374860,7.01706586,59174.0,59173.0,0.007077]
[1617388375059,6.01706586,59174.0,59173.0,0.007077]
[1617388375258,5.62942686,59174.0,59173.0,0.007077]
[1617388375458,6.62942686,59174.0,59173.0,0.002077]
[1617388375862,5.62942686,59174.0,59173.0,0.002077]
[1617388376898,5.57942686,59174.0,59173.0,0.002077]
[1617388377298,5.37942686,59174.0,59173.0,0.002077]
[1617388377699,5.53942686,59174.0,59173.0,0.002077]
[1617388378111,5.33942686,59174.0,59173.0,0.002077]
[1617388378314,5.05711607,59174.0,59173.0,0.002077]
[1617388378920,5.09711607,59174.0,59173.0,0.002077]
[1617388379122,5.14711607,59174.0,59173.0,0.002077]
[1617388379325,6.07746586,59174.0,59173.0,0.002077]
[1617388380722,5.87746586,59174.0,59173.0,0.002077]
[1617388380923,6.87746586,59174.0,59173.0,0.002077]
[1617388381123,7.08146586,59174.0,59173.0,0.002077]
[1617388381740,7.58844586,59174.0,59173.0,0.002077]
[1617388383345,0.387639,59172.0,59163.0,0.253584]
[1617388383541,0.2,59165.0,59163.0,0.253584]
[1617388383740,4.00098221,59164.0,59163.0,0.253584]
[1617388383942,5.40174221,59164.0,59163.0,0.253584]
[1617388384756,5.72311221,59164.0,59163.0,0.253584]
[1617388385157,5.72311221,59164.0,59163.0,0.248584]
[1617388385565,5.72507842,59164.0,59163.0,0.248584]
[1617388386361,5.52507842,59164.0,59163.0,0.248584]
[1617388386788,5.55193109,59164.0,59163.0,0.248584]
[1617388386987,5.23056109,59164.0,59163.0,0.248584]
[1617388388785,5.43056109,59164.0,59163.0,0.248584]
[1617388389817,5.44730232,59164.0,59163.0,0.248584]
[1617388390412,5.45298161,59164.0,59163.0,0.248584]
[1617388390612,5.43329196,59164.0,59163.0,0.248584]
[1617388391218,5.23329196,59164.0,59163.0,0.248584]
[1617388391617,5.23624599,59164.0,59163.0,0.248584]
[1617388392232,1.23624599,59164.0,59163.0,0.248584]
[1617388392434,0.71124599,59164.0,59163.0,0.248584]
[1617388393069,2.25124599,59164.0,59163.0,0.248584]
[1617388393860,2.54829196,59164.0,59163.0,0.248584]
[1617388394062,3.01033196,59164.0,59163.0,0.248584]
[1617388394458,3.02503715,59164.0,59163.0,0.248584]
[1617388394685,3.02799012,59164.0,59163.0,0.248584]
[1617388395281,2.94474012,59164.0,59163.0,0.248584]
[1617388395883,2.74474012,59164.0,59163.0,0.248584]
[1617388396084,2.94474012,59164.0,59163.0,0.248584]
[1617388396285,3.07947012,59164.0,59163.0,0.248584]
[1617388396685,3.07651715,59164.0,59163.0,0.248584]
[1617388397487,3.07651715,59164.0,59163.0,0.348584]
[1617388397892,3.27651715,59164.0,59163.0,0.1]
[1617388398088,5.35651715,59164.0,59163.0,0.1]
[1617388398290,5.36071715,59164.0,59163.0,0.1]
[1617388398489,3.07571715,59164.0,59163.0,0.1]
[1617388400511,2.74098715,59164.0,59163.0,0.1]
[1617388401314,2.36219715,59164.0,59163.0,0.1]
[1617388401918,2.93650715,59164.0,59163.0,0.1]
[1617388402115,3.14150715,59164.0,59163.0,0.1]
[1617388404940,4.41049715,59164.0,59163.0,0.1]
[1617388405964,3.20049715,59164.0,59163.0,0.1]
[1617388406964,4.11049715,59164.0,59163.0,0.1]
[1617388408708,4.31049715,59164.0,59163.0,0.1]
[1617388408918,4.11049715,59164.0,59163.0,0.1]
[1617388409109,3.20049715,59164.0,59163.0,0.1]
[1617388409307,3.14150715,59164.0,59163.0,0.1]
[1617388409708,3.39441715,59164.0,59163.0,0.1]
[1617388409909,4.62205615,59164.0,59163.0,0.1]
[1617388410108,4.03441715,59164.0,59163.0,0.1]
[1617388412235,3.19441715,59164.0,59163.0,0.1]
[1617388412838,3.19021715,59164.0,59163.0,0.1]
[1617388413044,2.99021715,59164.0,59163.0,0.1]
[1617388413248,2.79982715,59164.0,59163.0,0.1]
[1617388413446,2.99982715,59164.0,59163.0,0.1]
[1617388414044,2.79982715,59164.0,59163.0,0.1]
[1617388414245,2.99982715,59164.0,59163.0,0.1]
[1617388414846,4.25982715,59164.0,59163.0,0.1]
[1617388415046,4.33740715,59164.0,59163.0,0.1]
[1617388415245,3.07740715,59164.0,59163.0,0.1]
[1617388416061,2.79982715,59164.0,59163.0,0.1]
[1617388416263,2.36299715,59164.0,59163.0,0.1]
[1617388416863,4.34299715,59164.0,59163.0,0.1]
[1617388417261,4.65780715,59164.0,59163.0,0.1]
[1617388417464,5.04531715,59164.0,59163.0,0.1]
[1617388417862,4.84531715,59164.0,59163.0,0.1]
[1617388419091,2.98924715,59164.0,59163.0,0.1]
[1617388419291,2.67443715,59164.0,59163.0,0.1]
[1617388419491,2.56299715,59164.0,59163.0,0.1]
[1617388419694,2.36299715,59164.0,59163.0,0.1]
[1617388421154,2.56299715,59164.0,59163.0,0.1]
[1617388421752,3.35299715,59164.0,59163.0,0.1]
[1617388423231,2.56299715,59164.0,59163.0,0.1]
[1617388423455,2.56299715,59164.0,59163.0,0.0993]
[1617388423655,5.02299715,59164.0,59163.0,0.0993]
[1617388425054,2.56299715,59164.0,59163.0,0.0993]
[1617388425656,3.80299715,59164.0,59163.0,0.0993]
[1617388427672,4.00299715,59164.0,59163.0,0.0993]
[1617388428072,3.80299715,59164.0,59163.0,0.0993]
[1617388428474,4.19063615,59164.0,59163.0,0.0993]
[1617388428700,4.39063615,59164.0,59163.0,0.0993]
[1617388429300,4.00299715,59164.0,59163.0,0.0993]
[1617388429700,4.70299715,59164.0,59163.0,0.0993]
[1617388430302,5.09063615,59164.0,59163.0,0.0993]
[1617388430503,4.19063615,59164.0,59163.0,0.0993]
[1617388430701,3.80299715,59164.0,59163.0,0.0993]
[1617388430904,4.39063615,59164.0,59163.0,0.0993]
[1617388431520,5.78063615,59164.0,59163.0,0.09712143]
[1617388432319,5.78063615,59164.0,59163.0,0.09212143]
[1617388432521,5.58063615,59164.0,59163.0,0.09212143]
[1617388433520,3.80299715,59164.0,59163.0,0.09212143]
[1617388433719,5.22299715,59164.0,59163.0,0.09212143]
[1617388433943,5.81063615,59164.0,59163.0,0.09212143]
[1617388434748,5.42299715,59164.0,59163.0,0.09212143]
[1617388436347,5.81063615,59164.0,59163.0,0.09212143]
[1617388437375,5.61063615,59164.0,59163.0,0.09212143]
[1617388437575,5.22299715,59164.0,59163.0,0.09212143]
[1617388437975,3.79731786,59164.0,59163.0,0.09212143]
[1617388438180,5.21731786,59164.0,59163.0,0.08712143]
[1617388439793,5.21731786,59164.0,59163.0,0.08212143]
[1617388440596,5.22299715,59164.0,59163.0,0.08212143]
[1617388440997,3.80299715,59164.0,59163.0,0.08212143]
[1617388441599,4.50299715,59164.0,59163.0,0.08212143]
[1617388442023,3.80299715,59164.0,59163.0,0.08212143]
[1617388443226,3.84232733,59164.0,59163.0,0.08212143]
[1617388443427,2.60232733,59164.0,59163.0,0.08212143]
[1617388444446,3.29232733,59164.0,59163.0,0.08212143]
[1617388445446,4.20232733,59164.0,59163.0,0.08212143]
[1617388445646,4.00232733,59164.0,59163.0,0.08212143]
[1617388447466,4.85232733,59164.0,59163.0,0.08212143]
[1617388448071,4.00232733,59164.0,59163.0,0.08212143]
[1617388448267,3.29232733,59164.0,59163.0,0.08212143]
[1617388449071,3.25299715,59164.0,59163.0,0.08212143]
[1617388449272,3.49231949,59164.0,59163.0,0.08212143]
[1617388449470,4.97231949,59164.0,59163.0,0.08212143]
[1617388450091,4.96231949,59164.0,59163.0,0.08212143]
[1617388450492,3.28231949,59164.0,59163.0,0.08212143]
[1617388450896,3.24299715,59164.0,59163.0,0.08212143]
[1617388452924,3.44299715,59164.0,59163.0,0.08212143]
[1617388453224,3.83063615,59164.0,59163.0,0.08212143]
[1617388453426,4.96997254,59164.0,59163.0,0.08212143]
[1617388453835,4.93063615,59164.0,59163.0,0.08212143]
[1617388454226,4.73063615,59164.0,59163.0,0.08212143]
[1617388454429,4.93063615,59164.0,59163.0,0.08212143]
[1617388454627,3.63063615,59164.0,59163.0,0.08212143]
[1617388454828,3.24299715,59164.0,59163.0,0.08212143]
[1617388456831,2.55299715,59164.0,59163.0,0.08212143]
[1617388457843,2.36299715,59164.0,59163.0,0.08212143]
[1617388458243,2.26299715,59164.0,59163.0,0.08212143]
[1617388458642,0.72299715,59164.0,59163.0,0.08212143]
[1617388459252,0.72299715,59164.0,59163.0,1.97421194]
[1617388459448,0.72299715,59164.0,59163.0,2.41921194]
[1617388459848,0.72299715,59164.0,59163.0,2.71921194]
[1617388460264,0.74269594,59164.0,59163.0,4.06921194]
[1617388460464,0.72299715,59164.0,59163.0,4.16921194]
[1617388460666,0.72299715,59164.0,59163.0,2.81921194]
[1617388461062,0.72595236,59164.0,59163.0,2.81921194]
[1617388461264,0.72299715,59164.0,59163.0,4.86921194]
[1617388462264,0.72595255,59164.0,59163.0,4.86921194]
[1617388462663,0.72595255,59164.0,59163.0,1.66921194]
[1617388462896,0.72595255,59164.0,59163.0,1.05912143]
[1617388463489,0.72299715,59164.0,59163.0,1.05912143]
[1617388464290,0.74269487,59164.0,59163.0,1.05912143]
[1617388465289,0.73769487,59164.0,59163.0,0.95912143]
[1617388465515,0.73769487,59164.0,59163.0,0.51412143]
[1617388466718,0.71799715,59164.0,59163.0,0.51412143]
[1617388466919,0.71799715,59164.0,59163.0,0.32712143]
[1617388467119,0.73768919,59164.0,59163.0,0.32712143]
[1617388467729,0.71799715,59164.0,59163.0,0.32712143]
[1617388469361,0.71731786,59164.0,59163.0,0.32712143]
[1617388471561,0.71731786,59164.0,59163.0,0.43244214]
[1617388472161,0.71731786,59164.0,59163.0,2.13244214]
[1617388472362,0.71731786,59164.0,59163.0,2.15182143]
[1617388473165,0.71731786,59164.0,59163.0,2.25182143]
[1617388475589,0.71731786,59164.0,59163.0,0.55182143]
[1617388476209,0.71731786,59164.0,59163.0,0.52712143]
[1617388480137,0.71731786,59164.0,59163.0,1.47712143]
[1617388480338,0.71731786,59164.0,59163.0,1.37712143]
[1617388480541,0.71731786,59164.0,59163.0,1.47712143]
[1617388481142,0.71731786,59164.0,59163.0,3.02712143]
[1617388481568,0.71731786,59164.0,59163.0,3.42706517]
[1617388481767,0.71731786,59164.0,59163.0,3.02712143]
[1617388482170,0.71731786,59164.0,59163.0,3.42706517]
[1617388482371,0.71731786,59164.0,59163.0,3.02712143]
[1617388482570,0.71731786,59164.0,59163.0,1.47712143]
[1617388483414,0.71731786,59164.0,59163.0,0.52712143]
[1617388484014,0.71731786,59164.0,59163.0,1.19712143]
[1617388485014,0.71731786,59164.0,59163.0,0.28212143]
[1617388486216,0.71231786,59164.0,59163.0,1.22212143]
[1617388486417,0.71231786,59164.0,59163.0,1.27212143]
[1617388486619,0.71428964,59164.0,59163.0,1.47212143]
[1617388486817,0.71428964,59164.0,59163.0,0.53212143]
[1617388487215,0.71428964,59164.0,59163.0,0.48212143]
[1617388487417,0.71428964,59164.0,59163.0,0.28212143]
[1617388487817,0.71428964,59164.0,59163.0,0.18212143]
[1617388488016,0.71231786,59164.0,59163.0,0.28212143]
[1617388488216,0.71428996,59164.0,59163.0,0.28212143]
[1617388488415,0.71428996,59164.0,59163.0,0.42212143]
[1617388490044,0.71231786,59164.0,59163.0,0.42212143]
[1617388490444,0.7142896,59164.0,59163.0,0.42212143]
[1617388490842,0.7142896,59164.0,59163.0,0.47212143]
[1617388491045,0.71231786,59164.0,59163.0,2.24212143]
[1617388491645,0.66231786,59164.0,59163.0,2.24212143]
[1617388491862,0.66231786,59164.0,59163.0,0.47212143]
[1617388492866,0.66231786,59164.0,59163.0,2.09212143]
[1617388493062,0.66231786,59164.0,59163.0,2.34562043]
[1617388493463,0.66231786,59164.0,59163.0,0.72562043]
[1617388493863,0.66231786,59164.0,59163.0,1.39562043]
[1617388495494,0.66231786,59164.0,59163.0,0.72562043]
[1617388496295,0.66429083,59164.0,59163.0,0.72562043]
[1617388496496,0.66231786,59164.0,59163.0,0.72562043]
[1617388498124,0.66231786,59164.0,59163.0,0.67562043]
[1617388498366,0.66527787,59164.0,59163.0,0.72562043]
[1617388499769,0.66527787,59164.0,59163.0,0.91619043]
[1617388499971,0.66527787,59164.0,59163.0,4.49619043]
[1617388499972,0.66231786,59164.0,59163.0,4.49619043]
[1617388500172,0.66231786,59164.0,59163.0,0.91619043]
[1617388500769,0.66429197,59164.0,59163.0,2.28619043]
[1617388500969,0.66231786,59164.0,59163.0,2.28619043]
[1617388501569,0.66231786,59164.0,59163.0,2.18619043]
[1617388501772,0.66429204,59164.0,59163.0,2.13874043]
[1617388501971,0.66429204,59164.0,59163.0,1.99562043]
[1617388502772,0.66429204,59164.0,59163.0,3.69562043]
[1617388503177,0.66231786,59164.0,59163.0,3.69562043]
[1617388503372,0.66231786,59164.0,59163.0,3.17371043]
[1617388503772,0.66231786,59164.0,59163.0,3.96371043]
[1617388503973,0.66231786,59164.0,59163.0,4.36365417]
[1617388504173,0.66231786,59164.0,59163.0,4.61365417]
[1617388504778,0.32437286,59164.0,59163.0,6.15365417]
[1617388504998,0.00989427,59165.0,59164.0,4.0]
[1617388505197,0.00989427,59165.0,59164.0,5.44994374]
[1617388505397,0.68597427,59165.0,59164.0,5.66694374]
[1617388505603,0.33817527,59165.0,59164.0,6.40694374]
[1617388505802,0.33817527,59165.0,59164.0,6.66394374]
[1617388505997,0.00028427,59165.0,59164.0,6.66394374]
[1617388506401,0.00197546,59169.0,59168.0,0.3650703]
[1617388506601,0.67800546,59169.0,59168.0,5.19277404]
[1617388506805,0.67800546,59169.0,59168.0,6.59277404]
[1617388507197,0.67800546,59169.0,59168.0,6.75877404]
[1617388507401,0.67603,59169.0,59168.0,2.75877404]
[1617388507815,0.67603,59169.0,59168.0,4.22877404]
[1617388508214,0.67800568,59169.0,59168.0,4.22877404]
[1617388508615,0.62800568,59169.0,59168.0,6.92477404]
[1617388509219,0.62603,59169.0,59168.0,6.92477404]
[1617388510248,0.64691325,59169.0,59168.0,6.92477404]
[1617388511849,0.64691325,59169.0,59168.0,4.31037404]
[1617388513530,0.64691325,59169.0,59168.0,2.84037404]
[1617388513731,0.64691325,59169.0,59168.0,3.51037404]
[1617388514132,0.64691325,59169.0,59168.0,3.21037404]
[1617388514734,0.64691325,59169.0,59168.0,4.18037404]
[1617388515534,0.64691325,59169.0,59168.0,2.67930374]
[1617388515737,0.64691325,59169.0,59168.0,3.19330374]
[1617388516736,0.64691325,59169.0,59168.0,4.09330374]
[1617388516936,0.64691325,59169.0,59168.0,4.10030374]
[1617388517539,0.64691325,59169.0,59168.0,4.25530374]
[1617388517738,0.64691325,59169.0,59168.0,3.51530374]
[1617388517939,0.64691325,59169.0,59168.0,3.5143722]
[1617388518337,0.64691325,59169.0,59168.0,3.7643722]
[1617388518740,0.64691325,59169.0,59168.0,4.6143722]
[1617388519539,0.64691325,59169.0,59168.0,3.6093722]
[1617388520749,0.64691325,59169.0,59168.0,4.4523722]
[1617388522450,0.64691325,59169.0,59168.0,3.6023722]
[1617388523674,0.64691325,59169.0,59168.0,4.4923722]
[1617388524275,0.64691325,59169.0,59168.0,3.6023722]
[1617388524677,0.59691325,59169.0,59168.0,6.0023722]
[1617388525478,0.59691325,59169.0,59168.0,6.1643722]
[1617388526494,0.59691325,59169.0,59168.0,4.3823722]
[1617388527599,0.59691325,59169.0,59168.0,5.3923722]
[1617388527998,0.59691325,59169.0,59168.0,5.5483722]
[1617388528553,0.59691325,59169.0,59168.0,6.1583722]
[1617388529088,0.59691325,59169.0,59168.0,5.5483722]
[1617388529283,0.59691325,59169.0,59168.0,5.3923722]
[1617388530085,0.59691325,59169.0,59168.0,4.3823722]
[1617388531587,0.59691325,59169.0,59168.0,5.3923722]
[1617388532388,0.59691325,59169.0,59168.0,4.3823722]
[1617388532591,0.59691325,59169.0,59168.0,1.4423722]
[1617388532794,0.59691325,59169.0,59168.0,1.0]
[1617388533191,0.60171325,59169.0,59167.0,0.253419]
[1617388533393,0.60368909,59169.0,59167.0,0.253419]
[1617388533992,0.69836838,59169.0,59167.0,0.253419]
[1617388534189,0.59888909,59169.0,59167.0,0.253419]
[1617388534391,0.59888909,59169.0,59168.0,1.655]
[1617388534793,0.59888909,59169.0,59168.0,0.375]
[1617388535393,0.59888909,59169.0,59168.0,2.905]
[1617388535597,0.59691325,59169.0,59168.0,3.4696122]
[1617388535993,0.59691325,59169.0,59168.0,3.5196122]
[1617388537407,0.59691325,59169.0,59168.0,0.9896122]
[1617388537609,0.59691325,59169.0,59168.0,0.425]
[1617388538809,0.59691325,59169.0,59168.0,1.485]
[1617388538810,0.54691325,59169.0,59168.0,1.485]
[1617388539231,0.54691325,59169.0,59168.0,1.7996122]
[1617388539432,0.54691325,59169.0,59168.0,1.485]
[1617388539631,0.54691325,59169.0,59168.0,1.735]
[1617388540241,5.64159254,59169.0,59168.0,0.2702]
[1617388540447,0.003,59166.0,59148.0,0.18713539]
[1617388540641,0.003,59156.0,59148.0,0.1474]
[1617388540839,0.007,59152.0,59148.0,0.1474]
[1617388541036,0.67770929,59152.0,59144.0,0.16]
[1617388541239,0.007,59148.0,59144.0,0.16]
[1617388541439,0.007,59148.0,59126.0,2.61892]
[1617388541658,0.003,59146.0,59135.0,0.002]
[1617388541855,0.003,59141.0,59133.0,0.422517]
[1617388542053,0.89365,59141.0,59133.0,0.424517]
[1617388542253,0.007,59138.0,59134.0,0.01987588]
[1617388542452,0.52603,59138.0,59134.0,0.01987588]
[1617388542654,0.53023,59138.0,59134.0,0.31987588]
[1617388543050,0.52603,59138.0,59134.0,0.3]
[1617388543251,0.52603,59138.0,59134.0,0.1]
[1617388543930,0.52103,59138.0,59134.0,0.1]
[1617388544129,0.52103,59138.0,59136.0,0.338098]
[1617388544325,0.52103,59138.0,59137.0,4.235]
[1617388544528,0.52103,59138.0,59137.0,4.5496122]
[1617388544725,0.52103,59138.0,59137.0,4.535]
[1617388544926,0.52103,59138.0,59137.0,4.3196122]
[1617388545130,0.52103,59138.0,59137.0,4.005]
[1617388545324,0.52103,59138.0,59137.0,4.5731822]
[1617388545526,0.52103,59138.0,59137.0,1.1031822]
[1617388545725,0.52103,59138.0,59137.0,0.53857]
[1617388546125,0.52103,59138.0,59137.0,0.40357]
[1617388546325,0.52103,59138.0,59137.0,1.41357]
[1617388546726,0.52103,59138.0,59137.0,0.40357]
[1617388546924,0.52103,59138.0,59137.0,0.25357]
[1617388547324,0.52103,59138.0,59137.0,0.94357]
[1617388547527,0.54206028,59138.0,59137.0,0.94357]
[1617388547726,0.54206028,59138.0,59137.0,0.25357]
[1617388548529,0.54206028,59138.0,59137.0,0.30357]
[1617388549128,0.54206028,59138.0,59137.0,0.40357]
[1617388549931,0.89445028,59138.0,59137.0,0.40357]
[1617388551734,0.89445028,59138.0,59137.0,0.50357]
[1617388553755,0.54206028,59138.0,59137.0,0.50357]
[1617388554356,0.54206028,59138.0,59137.0,1.44357]
[1617388554558,0.54206028,59138.0,59137.0,0.50357]
[1617388554779,0.54206028,59138.0,59137.0,0.76857]
[1617388555781,0.54206028,59138.0,59137.0,0.45357]
[1617388555983,0.54206028,59138.0,59137.0,0.50357]
[1617388559066,0.54206028,59138.0,59137.0,0.49857]
[1617388560059,0.54206028,59138.0,59137.0,0.45357]
[1617388560259,0.54206028,59138.0,59137.0,0.35357]
[1617388561059,0.63673957,59138.0,59137.0,0.35357]
[1617388561457,0.54206028,59138.0,59137.0,0.35357]
[1617388561660,0.54206028,59138.0,59137.0,0.45357]
[1617388565067,0.54206028,59138.0,59137.0,0.1]
[1617388565290,1.03689957,59138.0,59137.0,0.1]
[1617388565689,0.94689957,59138.0,59137.0,0.1]
[1617388565889,1.08689957,59138.0,59137.0,0.1]
[1617388566090,4.66689957,59138.0,59137.0,0.1]
[1617388566292,6.95160693,59138.0,59137.0,0.1]
[1617388566492,6.58478847,59138.0,59137.0,0.1]
[1617388567090,6.78478847,59138.0,59137.0,0.1]
[1617388568312,6.72478847,59138.0,59137.0,0.1]
[1617388568513,6.68478847,59138.0,59137.0,0.1]
[1617388568721,6.68675159,59138.0,59137.0,0.1]
[1617388569313,7.19404159,59138.0,59137.0,0.1]
[1617388569515,7.23404159,59138.0,59096.0,0.30306]
[1617388569717,0.00303724,59131.0,59114.0,0.14206438]
[1617388569917,0.006,59125.0,59114.0,0.14206438]
[1617388570115,0.10371653,59125.0,59114.0,0.14206438]
[1617388570318,0.004,59122.0,59114.0,0.14206438]
[1617388570546,0.09867929,59122.0,59114.0,0.14206438]
[1617388570743,0.08533154,59120.0,59114.0,0.14206438]
[1617388570941,0.09467929,59119.0,59114.0,0.14206438]
[1617388571141,0.90695154,59119.0,59114.0,0.14206438]
[1617388571344,0.4772499,59118.0,59114.0,0.14206438]
[1617388571543,0.9982799,59118.0,59114.0,0.14206438]
[1617388571943,0.9932799,59118.0,59114.0,0.14206438]
[1617388572143,0.2,59117.0,59114.0,0.14206438]
[1617388572341,0.6722499,59117.0,59114.0,0.14206438]
[1617388572541,1.1932799,59117.0,59114.0,0.14206438]
[1617388573609,0.9932799,59117.0,59114.0,0.19206438]
[1617388573810,0.9932799,59117.0,59115.0,0.36194136]
[1617388574010,0.38691836,59116.0,59115.0,0.36194136]
[1617388574221,0.52103,59117.0,59116.0,3.93]
[1617388574411,0.52103,59117.0,59116.0,4.095]
[1617388574613,0.52103,59117.0,59116.0,4.145]
[1617388574809,0.52103,59117.0,59116.0,0.315]
[1617388575410,0.52103,59117.0,59116.0,0.215]
[1617388576010,0.52103,59117.0,59116.0,2.685]
[1617388576214,0.52103,59117.0,59116.0,2.785]
[1617388576610,0.52103,59117.0,59116.0,2.735]
[1617388578213,0.52103,59117.0,59116.0,2.785]
[1617388578811,0.54590326,59117.0,59116.0,2.785]
[1617388579214,0.54590326,59117.0,59116.0,0.215]
[1617388579412,0.54590326,59117.0,59116.0,0.315]
[1617388580016,0.54590326,59117.0,59116.0,1.865]
[1617388580412,0.54590326,59117.0,59116.0,2.115]
[1617388581030,0.54590326,59117.0,59116.0,3.155]
[1617388581435,0.54590326,59117.0,59116.0,1.715]
[1617388582635,0.54590326,59117.0,59116.0,1.765]
[1617388582837,0.54590326,59117.0,59116.0,1.865]
[1617388583038,0.54590326,59117.0,59116.0,3.125]
[1617388583437,0.54590326,59117.0,59116.0,1.865]
[1617388583859,0.54590326,59117.0,59116.0,2.985]
[1617388584263,0.54590326,59117.0,59116.0,0.315]
[1617388584661,0.54590326,59117.0,59116.0,0.215]
[1617388584862,0.54590326,59117.0,59116.0,1.625]
[1617388585261,0.54090326,59117.0,59116.0,1.995]
[1617388586067,0.54090326,59117.0,59116.0,0.315]
[1617388586888,0.54090326,59117.0,59116.0,2.705]
[1617388589133,0.54090326,59117.0,59116.0,3.10199534]
[1617388589735,0.54090326,59117.0,59116.0,0.71199534]
[1617388589936,0.54090326,59117.0,59116.0,2.17199534]
[1617388590138,0.54090326,59117.0,59116.0,0.71199534]
[1617388590736,0.54090326,59117.0,59116.0,0.80789788]
[1617388590935,0.54090326,59117.0,59116.0,2.17789788]
[1617388591336,0.54090326,59117.0,59116.0,1.81733178]
[1617388591742,0.54090326,59117.0,59116.0,0.44733178]
[1617388593741,0.54090326,59117.0,59116.0,2.52733178]
[1617388594763,0.54090326,59117.0,59116.0,3.41733178]
[1617388594963,0.54090326,59117.0,59116.0,2.52733178]
[1617388595164,0.54090326,59117.0,59116.0,2.78100278]
[1617388595364,0.54090326,59117.0,59116.0,3.03100278]
[1617388597183,0.54090326,59117.0,59116.0,0.95100278]
[1617388597383,0.54090326,59117.0,59116.0,0.70100278]
[1617388597786,0.54090326,59117.0,59116.0,1.88100278]
[1617388598584,0.54090326,59117.0,59116.0,0.55100278]
[1617388598783,0.54090326,59117.0,59116.0,1.51100278]
[1617388599187,0.54090326,59117.0,59116.0,1.91100278]
[1617388599412,0.54090326,59117.0,59116.0,0.95100278]
[1617388599615,0.54090326,59117.0,59116.0,0.70100278]
[1617388600018,0.54090326,59117.0,59116.0,0.55100278]
[1617388600213,0.54090326,59117.0,59116.0,0.38600278]
[1617388600412,0.54090326,59117.0,59116.0,0.253671]
[1617388601611,0.54090326,59117.0,59116.0,0.303671]
[1617388601816,0.54090326,59117.0,59116.0,0.568671]
[1617388602639,1.90090326,59117.0,59116.0,0.568671]
[1617388602840,2.22045326,59117.0,59116.0,0.568671]
[1617388603043,2.22045326,59117.0,59116.0,0.518671]
[1617388603241,2.90275409,59117.0,59116.0,0.253671]
[1617388603441,4.34731145,59117.0,59116.0,0.253671]
[1617388603745,3.96039309,59117.0,59116.0,0.253671]
[1617388603937,4.34731145,59117.0,59116.0,0.253671]
[1617388604785,4.34731145,59117.0,59116.0,0.353671]
[1617388605186,3.75967245,59117.0,59116.0,0.453671]
[1617388605586,4.19731145,59117.0,59116.0,0.453671]
[1617388605986,5.19231145,59117.0,59116.0,0.453671]
[1617388606188,4.19231145,59117.0,59116.0,0.1]
[1617388606588,6.14231145,59117.0,59116.0,0.1]
[1617388606786,5.19231145,59117.0,59116.0,0.1]
[1617388607186,4.19231145,59117.0,59116.0,0.1]